bitfinex/quotes_SOLUSD_20250724
["timestamp","ask_amount","ask_price","bid_price","bid_amount"]
[1753332895676,6.09466616,185.84,185.79,6.09466616]
[1753332896051,5.89076128,185.85,185.79,12.19701611]
[1753332896252,5.38076128,185.85,185.79,12.19701611]
[1753332896659,5.38076128,185.85,185.79,6.81466616]
[1753332896961,5.89076128,185.85,185.78,6.09466616]
[1753332897170,6.09466616,185.83,185.78,6.09466616]
[1753332897562,6.09466616,185.83,185.78,6.81466616]
[1753332897755,6.09466616,185.83,185.78,6.09466616]
[1753332897959,6.09466616,185.83,185.79,0.72]
[1753332898271,6.09466616,185.84,185.79,0.72]
[1753332898565,6.09466616,185.83,185.77,0.06]
[1753332898766,6.09466616,185.82,185.77,6.15466616]
[1753332899066,6.09466616,185.82,185.77,0.06]
[1753332899565,6.09466616,185.8,185.77,0.06]
[1753332900471,6.09466616,185.81,185.77,0.06]
[1753332900671,6.09466616,185.85,185.79,6.09466616]
[1753332901056,6.09466616,185.83,185.78,6.09466616]
[1753332901256,6.09466616,185.81,185.77,0.06]
[1753332901753,0.51,185.85,185.77,0.78]
[1753332901950,6.09466616,185.81,185.77,0.78]
[1753332902659,6.09466616,185.83,185.78,6.81466616]
[1753332902866,5.89087006,185.85,185.77,5.44294588]
[1753332902867,5.89087006,185.85,185.77,6.15466616]
[1753332903057,6.09466616,185.82,185.77,6.15466616]
[1753332903253,6.09466616,185.81,185.77,0.06]
[1753332903469,6.09466616,185.79,185.77,0.06]
[1753332903876,6.09466616,185.8,185.77,0.06]
[1753332904457,6.09466616,185.8,185.77,0.78]
[1753332904664,6.09466616,185.81,185.77,0.78]
[1753332905075,5.38157923,185.82,185.77,0.06]
[1753332905250,6.09466616,185.81,185.77,0.78]
[1753332905453,0.51,185.84,185.77,0.78]
[1753332905454,0.51,185.84,185.77,6.87466616]
[1753332905782,6.09466616,185.82,185.77,0.06]
[1753332905955,6.09466616,185.82,185.77,6.15466616]
[1753332906474,6.09466616,185.82,185.77,11.53751542]
[1753332906675,6.09466616,185.85,185.8,6.09466616]
[1753332906975,6.09466616,185.84,185.79,6.09466616]
[1753332907164,6.09466616,185.82,185.77,12.25751542]
[1753332907362,6.09466616,185.82,185.77,6.87466616]
[1753332907981,6.09466616,185.82,185.77,0.78]
[1753332908458,11.47631923,185.82,185.77,0.78]
[1753332908658,5.38165307,185.82,185.77,0.78]
[1753332908875,11.47631923,185.82,185.77,0.78]
[1753332909061,6.09466616,185.81,185.77,0.78]
[1753332909862,31.38132768,185.83,185.77,12.25759476]
[1753332910074,31.38132768,185.83,185.78,0.72]
[1753332910273,0.51,185.88,185.79,6.81466616]
[1753332910490,0.51,185.88,185.81,6.09466616]
[1753332910783,6.09466616,185.84,185.79,6.09466616]
[1753332911081,0.51,185.84,185.77,6.87466616]
[1753332911381,6.09466616,185.86,185.78,0.72]
[1753332911675,26.0,185.85,185.81,6.09466616]
[1753332911860,5.88985142,185.88,185.81,6.09466616]
[1753332912063,6.09466616,185.87,185.82,6.81466616]
[1753332912268,6.09466616,185.86,185.82,0.72]
[1753332912469,6.09466616,185.86,185.82,6.10151037]
[1753332913184,5.37981493,185.88,185.78,5.38271073]
[1753332913363,5.37981493,185.88,185.78,6.09466616]
[1753332913565,32.09466616,185.85,185.8,6.09466616]
[1753332913764,5.88962319,185.89,185.84,6.09466616]
[1753332914081,31.37962319,185.89,185.85,0.72]
[1753332914278,6.09466616,185.87,185.82,6.81466616]
[1753332914484,11.47478818,185.87,185.82,0.72]
[1753332914860,6.09466616,185.85,185.79,0.72]
[1753332915060,6.09466616,185.83,185.78,11.97652352]
[1753332915266,3.75837588,185.82,185.78,6.5939]
[1753332915765,3.75837588,185.82,185.78,7.3139]
[1753332915960,0.51,185.81,185.77,0.06]
[1753332916181,3.75837588,185.79,185.77,0.06]
[1753332916778,3.75837588,185.78,185.77,0.06]
[1753332917282,6.12802206,185.78,185.77,0.06]
[1753332918277,6.12802206,185.79,185.77,0.06]
[1753332918475,11.51045454,185.79,185.77,0.06]
[1753332918659,6.12802206,185.78,185.77,0.06]
[1753332919080,6.12802206,185.79,185.77,0.06]
[1753332919272,5.38219301,185.8,185.77,0.06]
[1753332919471,6.12802206,185.79,185.77,0.06]
[1753332920767,26.0,185.82,185.78,0.72]
[1753332920966,39.92,185.85,185.8,6.12802206]
[1753332921293,6.12802206,185.88,185.81,0.72]
[1753332921486,6.12802206,185.88,185.83,6.12802206]
[1753332921984,6.12802206,185.85,185.8,6.12802206]
[1753332922688,5.38039384,185.86,185.8,6.12802206]
[1753332922864,6.12802206,185.85,185.79,6.0573]
[1753332923068,6.12802206,185.8,185.77,0.06]
[1753332923393,6.12802206,185.78,185.77,0.06]
[1753332923884,26.0,185.81,185.77,0.06]
[1753332924106,6.12802206,185.78,185.77,0.06]
[1753332924488,6.63802206,185.78,185.77,0.06]
[1753332924670,12.02073279,185.78,185.77,0.06]
[1753332925982,5.38271073,185.78,185.77,0.06]
[1753332926291,11.51073279,185.78,185.77,0.06]
[1753332926676,51.43073279,185.78,185.77,0.06]
[1753332927191,6.12802206,185.78,185.77,0.06]
[1753332927388,20.97589918,185.84,185.77,6.88802206]
[1753332927389,6.12802206,185.82,185.77,6.88802206]
[1753332927595,6.12802206,185.82,185.78,0.7]
[1753332927773,6.12802206,185.81,185.78,0.7]
[1753332927974,6.12802206,185.81,185.77,0.06]
[1753332928172,6.12802206,185.81,185.77,0.76]
[1753332928786,65.92,185.84,185.77,0.76]
[1753332928987,6.12802206,185.81,185.77,0.76]
[1753332929390,11.50990966,185.81,185.77,0.76]
[1753332929584,6.12802206,185.8,185.77,0.76]
[1753332930395,6.12802206,185.81,185.77,0.76]
[1753332931894,6.12802206,185.81,185.77,0.06]
[1753332932097,6.12802206,185.81,185.77,0.76]
[1753332932470,11.5099438,185.81,185.77,0.76]
[1753332932694,5.38192174,185.81,185.77,0.76]
[1753332932976,6.12802206,185.8,185.77,0.76]
[1753332933996,6.12802206,185.79,185.77,0.06]
[1753332935815,11.51052865,185.79,185.77,0.06]
[1753332936302,6.12802206,185.78,185.77,0.06]
[1753332936603,11.51073279,185.78,185.77,0.06]
[1753332936802,12.02073279,185.78,185.77,0.06]
[1753332937188,12.02073279,185.78,185.71,9.25765384]
[1753332937189,26.0,185.75,185.71,9.25765384]
[1753332937500,6.12802206,185.72,185.71,2.39220127]
[1753332937800,0.51,185.74,185.71,2.39220127]
[1753332938002,39.92,185.73,185.71,2.39220127]
[1753332938217,6.12802206,185.73,185.71,2.39220127]
[1753332938388,39.92,185.73,185.71,2.39220127]
[1753332938895,46.04802206,185.74,185.71,2.39220127]
[1753332939510,26.0,185.78,185.71,9.22022333]
[1753332939706,26.0,185.78,185.73,6.12802206]
[1753332939881,39.92,185.79,185.74,6.82802206]
[1753332940082,5.38184166,185.81,185.75,0.7]
[1753332940401,46.04802206,185.8,185.75,0.7]
[1753332940702,51.43020847,185.8,185.75,0.7]
[1753332941021,6.12802206,185.79,185.75,0.7]
[1753332941304,26.51,185.78,185.71,2.39220127]
[1753332941506,26.0,185.76,185.71,2.39220127]
[1753332941800,26.0,185.72,185.71,2.39220127]
[1753332941985,32.63802206,185.72,185.71,2.39220127]
[1753332942382,39.92,185.72,185.71,2.39220127]
[1753332942582,5.38413973,185.74,185.71,2.39220127]
[1753332942799,6.12802206,185.74,185.71,2.39220127]
[1753332943012,32.12802206,185.76,185.72,0.7]
[1753332943185,5.38241346,185.8,185.75,6.12802206]
[1753332943388,39.92,185.79,185.76,0.7]
[1753332943587,39.92,185.8,185.76,6.12802206]
[1753332943792,39.92,185.8,185.77,6.82802206]
[1753332944094,0.51,185.86,185.79,6.12802206]
[1753332944291,6.12802206,185.86,185.81,6.12802206]
[1753332944488,39.92,185.86,185.82,6.82802206]
[1753332944686,46.07802206,185.87,185.83,0.7]
[1753332944896,6.12802206,185.86,185.83,0.7]
[1753332945095,0.5,185.85,185.83,0.7]
[1753332945297,0.5,185.85,185.84,6.82802206]
[1753332946639,0.5,185.85,185.84,18.93679221]
[1753332946818,0.03,185.87,185.84,18.93679221]
[1753332946994,0.03,185.87,185.86,6.12802206]
[1753332947513,0.03,185.87,185.86,6.82802206]
[1753332948718,0.03,185.87,185.86,12.2084159]
[1753332948909,0.03,185.87,185.86,6.08039384]
[1753332949103,0.03,185.87,185.86,12.2084159]
[1753332949414,0.03,185.9,185.86,26.19743989]
[1753332949592,0.03,185.9,185.89,6.12802206]
[1753332949988,0.03,185.9,185.89,6.82802206]
[1753332950693,0.03,185.9,185.89,12.20754758]
[1753332951216,0.03,185.9,185.89,6.07952552]
[1753332951422,0.03,185.9,185.89,12.20754758]
[1753332951915,0.03,185.9,185.87,6.12802206]
[1753332952102,6.15802206,185.9,185.86,0.69]
[1753332952421,6.12802206,185.88,185.84,6.1897]
[1753332952626,5.37952552,185.89,185.84,6.1897]
[1753332952820,6.12802206,185.86,185.81,6.12802206]
[1753332953139,6.12802206,185.83,185.78,6.12802206]
[1753332953629,0.7,185.85,185.78,6.12802206]
[1753332953630,6.12802206,185.84,185.78,12.20068314]
[1753332954155,18.82833933,185.89,185.8,6.12802206]
[1753332954292,6.12802206,185.85,185.8,6.12802206]
[1753332954497,6.12802206,185.84,185.78,0.69]
[1753332954708,6.12802206,185.83,185.77,5.44296895]
[1753332954915,6.12802206,185.83,185.78,6.12802206]
[1753332955417,6.12802206,185.81,185.77,0.06]
[1753332955902,5.38099062,185.84,185.77,6.18802206]
[1753332956108,6.12802206,185.82,185.77,6.18802206]
[1753332956309,6.12802206,185.81,185.77,0.06]
[1753332956816,6.12802206,185.79,185.77,0.06]
[1753332958407,6.82802206,185.78,185.77,0.06]
[1753332958727,0.7,185.78,185.77,0.06]
[1753332958934,6.82802206,185.78,185.77,0.06]
[1753332959102,6.12802206,185.78,185.77,0.06]
[1753332959301,0.7,185.81,185.77,0.06]
[1753332959500,6.12802206,185.78,185.77,0.06]
[1753332960199,5.38243334,185.79,185.77,0.06]
[1753332960525,6.12802206,185.78,185.77,0.06]
[1753332961204,5.38184166,185.81,185.77,0.06]
[1753332961523,6.12802206,185.79,185.77,0.06]
[1753332962406,6.12802206,185.78,185.77,0.06]
[1753332963924,6.12802206,185.85,185.77,6.87802206]
[1753332964223,0.5,185.78,185.77,6.13300048]
[1753332964728,6.12802206,185.83,185.77,6.13300048]
[1753332964910,65.9,185.88,185.77,6.13300048]
[1753332964911,0.7,185.84,185.77,0.75]
[1753332965227,0.7,185.84,185.77,0.06]
[1753332965400,6.12802206,185.79,185.77,0.06]
[1753332965600,6.12802206,185.78,185.77,0.06]
[1753332965830,6.82802206,185.78,185.77,0.06]
[1753332966327,6.12802206,185.78,185.77,0.06]
[1753332966700,6.82802206,185.78,185.77,0.06]
[1753332966910,6.12802206,185.78,185.77,0.06]
[1753332967104,6.12802206,185.79,185.77,0.75]
[1753332967329,6.12802206,185.78,185.77,0.06]
[1753332967699,6.82802206,185.78,185.77,0.06]
[1753332968505,6.12802206,185.78,185.77,0.06]
[1753332968999,6.62802206,185.78,185.77,0.06]
[1753332970910,0.5,185.78,185.77,0.75]
[1753332971114,0.5,185.78,185.77,6.87802206]
[1753332971422,0.5,185.78,185.77,7.4163221]
[1753332972319,0.5,185.78,185.77,12.79932258]
[1753332974103,0.03,185.87,185.77,32.89502379]
[1753332974307,6.15802206,185.87,185.81,6.12802206]
[1753332974507,6.12802206,185.86,185.81,6.81802206]
[1753332974729,6.12802206,185.86,185.82,0.69]
[1753332974928,0.03,185.87,185.83,0.69]
[1753332975242,6.15802206,185.87,185.83,0.69]
[1753332975544,0.03,185.87,185.84,6.81802206]
[1753332975838,0.03,185.87,185.85,6.07058298]
[1753332976347,0.03,185.87,185.86,0.69]
[1753332976944,0.03,185.87,185.84,5.38092451]
[1753332977329,0.03,185.87,185.85,0.69]
[1753332977646,0.03,185.87,185.84,0.69]
[1753332978140,0.03,185.87,185.84,6.07074761]
[1753332979034,0.03,185.87,185.85,6.81802206]
[1753332979416,0.03,185.87,185.86,0.69]
[1753332979924,6.15802206,185.87,185.81,12.19986372]
[1753332980241,6.15802206,185.87,185.83,5.38126244]
[1753332980644,0.03,185.87,185.83,5.38126244]
[1753332980842,6.15802206,185.87,185.81,6.07184166]
[1753332981013,0.03,185.87,185.82,6.12802206]
[1753332981339,0.03,185.87,185.83,0.69]
[1753332981652,6.15802206,185.87,185.83,0.69]
[1753332982217,6.15802206,185.87,185.8,5.3820946]
[1753332982218,6.12802206,185.84,185.8,5.3820946]
[1753332982426,0.67,185.83,185.77,0.06]
[1753332982761,6.12802206,185.78,185.77,0.06]
[1753332982923,6.79802206,185.78,185.77,0.06]
[1753332983553,6.12802206,185.78,185.77,0.06]
[1753332983727,26.67,185.81,185.77,0.06]
[1753332984045,6.12802206,185.78,185.77,0.06]
[1753332984253,15.00676093,185.87,185.77,0.06]
[1753332984419,6.12802206,185.81,185.77,0.77]
[1753332985025,6.12802206,185.8,185.77,0.77]
[1753332985254,0.67,185.85,185.77,0.06]
[1753332985438,6.12802206,185.81,185.77,0.06]
[1753332985640,6.12802206,185.82,185.78,0.71]
[1753332985957,6.12802206,185.82,185.79,0.71]
[1753332986343,6.12802206,185.82,185.78,5.38271073]
[1753332986626,6.12802206,185.86,185.81,6.12802206]
[1753332986859,6.12802206,185.86,185.81,6.83802206]
[1753332987035,0.03,185.87,185.84,6.12802206]
[1753332987245,0.03,185.87,185.85,6.66609039]
[1753332987441,0.03,185.87,185.86,6.12802206]
[1753332987754,0.03,185.87,185.86,6.83802206]
[1753332988459,0.03,185.87,185.86,12.75645528]
[1753332988670,0.03,185.87,185.86,6.62843322]
[1753332988840,0.03,185.87,185.86,12.75645528]
[1753332990564,1e-08,185.87,185.86,12.75645528]
[1753332990863,1e-08,185.87,185.86,20.97125528]
[1753332991031,0.03,185.94,185.87,16.78468397]
[1753332991354,0.03,185.94,185.88,40.39798149]
[1753332991555,0.03,185.94,185.93,6.12802206]
[1753332991956,0.03,185.94,185.93,0.71]
[1753332992159,0.03,185.94,185.93,6.83802206]
[1753332992337,0.03,185.94,185.93,12.21639026]
[1753332992533,0.03,185.95,185.93,12.21639026]
[1753332992756,0.2,186.01,185.94,46.69802206]
[1753332992959,0.2,186.01,185.97,6.12802206]
[1753332993326,6.32802206,186.01,185.95,0.71]
[1753332993530,6.32802206,186.01,185.96,6.83802206]
[1753332993730,0.2,186.01,185.97,6.12802206]
[1753332994046,0.2,186.01,185.97,6.83802206]
[1753332994550,0.2,186.01,185.97,12.21523343]
[1753332995833,0.2,186.01,185.97,20.10713343]
[1753332996354,0.2,186.01,185.97,33.55016187]
[1753332996531,0.2,186.01,185.98,0.71]
[1753332996849,0.2,186.01,186.0,6.12802206]
[1753332997151,0.2,186.06,186.0,7.37565646]
[1753332997355,0.2,186.06,186.01,0.71]
[1753332997530,0.2,186.06,186.05,6.12802206]
[1753332997729,0.2,186.06,186.05,46.67802206]
[1753332997945,0.2,186.09,186.05,46.67802206]
[1753332998146,0.2,186.16,186.08,12.74232206]
[1753332998349,0.2,186.16,186.15,6.12802206]
[1753332998651,0.2,186.16,186.14,39.84]
[1753332998855,0.2,186.16,186.11,11.50117367]
[1753332999063,6.12802206,186.12,186.02,6.08576604]
[1753332999363,6.12802206,186.1,186.05,6.12802206]
[1753332999660,6.12802206,186.11,186.05,6.83802206]
[1753332999957,6.79802206,186.12,186.07,6.12802206]
[1753333000329,32.4773,186.15,186.07,6.12802206]
[1753333000532,6.12802206,186.13,186.08,6.12802206]
[1753333000730,6.04201593,186.15,186.08,6.83802206]
[1753333000941,6.12802206,186.14,186.09,6.12802206]
[1753333001149,0.2,186.16,186.11,6.12802206]
[1753333001333,6.32802206,186.16,186.11,6.12802206]
[1753333001668,6.12802206,186.15,186.1,6.12802206]
[1753333001837,6.99802206,186.16,186.1,6.83802206]
[1753333002165,6.32802206,186.16,186.11,6.12802206]
[1753333002455,6.32802206,186.16,186.11,6.83802206]
[1753333002752,6.12802206,186.15,186.09,6.12802206]
[1753333002966,6.12802206,186.1,186.04,6.08518813]
[1753333003172,6.12802206,186.11,186.06,6.12802206]
[1753333003551,6.12802206,186.11,186.05,6.12802206]
[1753333003765,6.12802206,186.13,186.08,6.12802206]
[1753333003952,6.79802206,186.14,186.08,0.71]
[1753333004145,6.12802206,186.14,186.09,6.83802206]
[1753333004351,6.12802206,186.15,186.1,6.83802206]
[1753333004658,6.12802206,186.15,186.11,0.71]
[1753333004858,0.2,186.16,186.12,6.83802206]
[1753333005064,0.2,186.16,186.13,6.12802206]
[1753333005268,0.2,186.16,186.14,6.12802206]
[1753333005450,0.2,186.16,186.14,0.71]
[1753333005653,0.2,186.16,186.15,6.83802206]
[1753333006380,0.2,186.16,186.13,6.12802206]
[1753333006580,0.2,186.16,186.12,6.83802206]
[1753333006947,6.32802206,186.16,186.11,11.50103604]
[1753333007255,6.32802206,186.16,186.11,12.21103604]
[1753333007455,0.2,186.16,186.12,6.12802206]
[1753333008176,0.2,186.16,186.12,6.83802206]
[1753333008351,0.2,186.16,186.11,5.37301398]
[1753333008352,0.2,186.16,186.13,6.83802206]
[1753333008556,0.2,186.16,186.15,6.12802206]
[1753333008760,0.2,186.16,186.15,11.50003387]
[1753333009057,0.2,186.16,186.15,12.74723505]
[1753333009262,0.2,186.16,186.15,52.54723505]
[1753333009766,0.03,186.25,186.15,52.54723505]
[1753333009975,0.03,186.25,186.23,6.12802206]
[1753333010276,0.03,186.25,186.24,32.66496364]
[1753333010475,0.03,186.25,186.24,6.66496364]
[1753333010770,0.03,186.25,186.24,7.37496364]
[1753333011073,0.03,186.25,186.24,12.74437944]
[1753333011259,0.03,186.25,186.24,41.80624685]
[1753333012661,0.03,186.25,186.24,81.58624685]
[1753333012850,0.03,186.25,186.22,5.36971913]
[1753333013051,9.84988947,186.24,186.19,39.78]
[1753333013461,0.03,186.25,186.21,9.18988947]
[1753333013666,0.03,186.25,186.22,9.18988947]
[1753333013868,0.03,186.25,186.24,9.18988947]
[1753333014075,0.03,186.25,186.24,9.84988947]
[1753333014273,0.03,186.25,186.24,49.62988947]
[1753333014984,0.03,186.25,186.24,39.78]
[1753333015355,0.03,186.25,186.24,55.53624685]
[1753333015754,0.03,186.25,186.24,9.18988947]
[1753333015968,0.03,186.25,186.24,48.94988947]
[1753333016369,0.03,186.25,186.24,54.97930527]
[1753333017165,0.03,186.25,186.23,5.36965735]
[1753333017355,0.03,186.25,186.24,39.76]
[1753333017778,0.03,186.25,186.21,0.66]
[1753333017985,0.66,186.24,186.16,5.37172324]
[1753333018176,0.66,186.24,186.18,9.18988947]
[1753333018177,9.18988947,186.23,186.18,9.18988947]
[1753333018381,9.84988947,186.23,186.18,9.18988947]
[1753333018560,0.03,186.25,186.21,9.18988947]
[1753333018764,0.03,186.25,186.22,9.18988947]
[1753333018966,0.03,186.25,186.24,9.18988947]
[1753333019182,0.03,186.25,186.24,14.55930527]
[1753333019362,0.03,186.25,186.24,15.21930527]
[1753333020178,0.03,186.25,186.24,54.97930527]
[1753333020576,0.03,186.25,186.24,15.21930527]
[1753333020783,0.03,186.25,186.21,9.18988947]
[1753333020971,0.69,186.25,186.21,39.74]
[1753333021168,0.03,186.25,186.23,9.18988947]
[1753333021491,0.03,186.25,186.24,9.18988947]
[1753333021886,0.03,186.29,186.28,9.18988947]
[1753333022070,0.03,186.29,186.28,49.50671575]
[1753333022265,1e-08,186.29,186.28,50.16671575]
[1753333022587,0.03,186.33,186.31,26.0]
[1753333022769,0.03,186.35,186.32,66.31128447]
[1753333022970,0.03,186.35,186.34,22.70542376]
[1753333023387,0.03,186.35,186.34,23.90207718]
[1753333023685,0.03,186.35,186.34,54.51218771]
[1753333023875,0.2,186.44,186.34,54.51218771]
[1753333023876,0.2,186.44,186.37,9.18988947]
[1753333024074,0.2,186.44,186.37,9.72645651]
[1753333024287,0.2,186.44,186.37,27.17114048]
[1753333024469,0.2,186.44,186.37,66.99114048]
[1753333024787,0.86,186.44,186.37,50.20645651]
[1753333025084,0.86,186.44,186.37,55.03555991]
[1753333025493,15.41364524,186.44,186.37,49.00988947]
[1753333025696,0.66,186.42,186.37,54.37555991]
[1753333025870,0.66,186.42,186.37,49.00988947]
[1753333026066,0.66,186.42,186.37,9.18988947]
[1753333026266,0.66,186.42,186.37,39.82]
[1753333026492,9.84988947,186.42,186.37,9.18988947]
[1753333026769,0.69,186.38,186.35,39.78]
[1753333026972,0.03,186.38,186.35,48.96988947]
[1753333028198,0.03,186.38,186.37,9.18988947]
[1753333028785,0.03,186.38,186.37,9.84988947]
[1753333029180,0.03,186.38,186.37,15.21555991]
[1753333029583,0.03,186.38,186.37,9.18988947]
[1753333029772,0.03,186.38,186.37,48.90988947]
[1753333030188,0.03,186.38,186.37,54.93555991]
[1753333030583,0.03,186.38,186.37,71.72024388]
[1753333033504,0.2,186.44,186.38,16.78468397]
[1753333033689,0.2,186.44,186.38,27.17111169]
[1753333033997,0.2,186.44,186.38,50.10642772]
[1753333034386,0.2,186.44,186.38,66.89111169]
[1753333035296,0.2,186.44,186.38,72.25649424]
[1753333037280,1e-08,186.39,186.38,78.67609424]
[1753333039582,1e-08,186.39,186.38,29.76620477]
[1753333039810,1e-08,186.39,186.38,61.87141027]
[1753333039992,1e-08,186.39,186.38,55.45181027]
[1753333041088,1e-08,186.39,186.38,5.9019208]
[1753333041394,1e-08,186.39,186.38,54.25527202]
[1753333041912,1e-08,186.39,186.38,54.93527202]
[1753333042215,1e-08,186.39,186.38,72.25649424]
[1753333046711,1e-08,186.39,186.38,32.55649424]
[1753333046906,1e-08,186.39,186.38,72.39649424]
[1753333047712,1e-08,186.39,186.38,5.9019208]
[1753333047896,1e-08,186.39,186.38,54.35527202]
[1753333048212,1e-08,186.39,186.38,55.03527202]
[1753333048412,1e-08,186.39,186.38,71.81995599]
[1753333048612,1e-08,186.39,186.38,72.35649424]
[1753333051913,1e-08,186.39,186.38,14.55527202]
[1753333052116,1e-08,186.39,186.38,54.31527202]
[1753333053397,1e-08,186.39,186.38,54.99527202]
[1753333053605,1e-08,186.39,186.38,45.80538255]
[1753333053802,1e-08,186.39,186.38,54.31527202]
[1753333054728,1e-08,186.39,186.38,54.99527202]
[1753333055303,1e-08,186.39,186.38,51.88693529]
[1753333056219,1e-08,186.39,186.38,46.3419208]
[1753333057395,1e-08,186.39,186.38,51.20693529]
[1753333057802,1e-08,186.39,186.38,51.88693529]
[1753333058118,1e-08,186.39,186.38,69.20815751]
[1753333059307,0.03,186.43,186.42,6.08155274]
[1753333059504,0.03,186.43,186.42,46.31797587]
[1753333059703,0.03,186.43,186.42,46.99797587]
[1753333059910,0.03,186.43,186.42,40.91642313]
[1753333060112,0.03,186.43,186.42,52.36220717]
[1753333062735,0.2,186.44,186.43,16.78468397]
[1753333063039,1e-08,186.44,186.43,23.54623671]
[1753333063233,0.2,186.51,186.47,16.78468397]
[1753333063445,0.2,186.51,186.5,6.08155274]
[1753333063624,0.2,186.51,186.5,45.78155274]
[1753333064320,0.2,186.51,186.5,51.14348303]
[1753333064519,0.2,186.51,186.5,51.82348303]
[1753333064720,0.2,186.51,186.5,51.14348303]
[1753333065055,0.2,186.57,186.54,16.78468397]
[1753333065242,0.2,186.57,186.56,6.08155274]
[1753333066043,0.2,186.57,186.56,45.78155274]
[1753333066342,0.2,186.57,186.56,51.14175857]
[1753333066555,0.2,186.57,186.56,11.44175857]
[1753333066865,0.92,186.57,186.56,39.7]
[1753333067225,0.2,186.57,186.56,45.78155274]
[1753333067723,0.92,186.57,186.56,45.78155274]
[1753333068315,0.2,186.57,186.56,51.14175857]
[1753333068832,0.1340026,186.57,186.56,51.14175857]
[1753333069428,0.8540026,186.57,186.56,39.7]
[1753333069744,0.1340026,186.57,186.56,45.06020583]
[1753333069924,0.1340026,186.57,186.56,51.14175857]
[1753333071236,0.1340026,186.57,186.56,45.06020583]
[1753333071456,0.1340026,186.57,186.56,51.14175857]
[1753333071954,0.7940026,186.57,186.56,51.14175857]
[1753333072337,0.1340026,186.57,186.56,51.14175857]
[1753333072538,0.1340026,186.57,186.56,67.92644254]
[1753333072734,0.1340026,186.57,186.56,95.14246312]
[1753333072933,1e-08,186.57,186.56,75.22401586]
[1753333073158,2.2539,186.66,186.6,42.78468397]
[1753333073322,1.5939,186.66,186.62,6.08155274]
[1753333073527,0.66,186.65,186.63,39.68]
[1753333073742,0.66,186.64,186.63,39.68]
[1753333074347,0.66,186.64,186.63,45.76155274]
[1753333074552,0.66,186.64,186.63,51.11969563]
[1753333075055,6.08155274,186.68,186.63,51.11969563]
[1753333075056,0.66,186.68,186.63,51.11969563]
[1753333075358,0.66,186.64,186.63,39.68]
[1753333075536,0.66,186.64,186.6,6.08155274]
[1753333075736,6.74155274,186.64,186.61,39.68]
[1753333076047,0.66,186.63,186.62,39.68]
[1753333078849,12.09985,186.63,186.53,5.36106792]
[1753333079033,6.08155274,186.6,186.54,16.78468397]
[1753333079356,0.66,186.59,186.55,45.74155274]
[1753333079557,0.66,186.59,186.56,6.08155274]
[1753333079751,0.66,186.58,186.57,39.66]
[1753333079955,0.66,186.58,186.53,5.36106792]
[1753333080134,6.08155274,186.56,186.52,5.36131434]
[1753333080336,0.66,186.55,186.53,39.66]
[1753333080559,0.66,186.57,186.53,45.74155274]
[1753333080848,0.66,186.56,186.53,39.66]
[1753333081055,0.66,186.55,186.53,39.66]
[1753333081354,6.08155274,186.54,186.53,39.66]
[1753333081537,6.74155274,186.54,186.53,39.66]
[1753333082057,0.66,186.54,186.53,39.66]
[1753333082961,6.74155274,186.54,186.53,39.66]
[1753333084160,0.66,186.54,186.53,39.66]
[1753333085360,6.74155274,186.58,186.53,51.10262066]
[1753333085570,0.66,186.57,186.54,6.08155274]
[1753333085770,0.66,186.57,186.55,39.66]
[1753333086062,40.93099908,186.63,186.55,45.74155274]
[1753333086063,6.74155274,186.6,186.55,45.74155274]
[1753333086265,0.03,186.57,186.55,45.74155274]
[1753333086475,0.66,186.56,186.51,0.06]
[1753333086771,6.08155274,186.54,186.52,39.66]
[1753333087067,6.08155274,186.54,186.53,39.66]
[1753333087663,6.74155274,186.54,186.53,39.66]
[1753333088958,0.66,186.56,186.53,39.66]